Workbook

Sheet Scenario
B2: Oklahoma Canola Systems vs. Continuous Wheat Systems Budget Comparison Oklahoma State University Oklahoma Cooperative Extension Service Oklahoma Agricultural Experiment Station Stillwater, Oklahoma Developed by Eric A. DeVuyst and Francis Epplin, Department of Agricultural Economics Thomas F. Peeper and Mark C. Bowles, Department of Plant and Soil Sciences
B15: Enter scenario description | I15: 2010-08-11
B20: Select wheat system | H20: Select canola system
B22: Dual-purpose | H22: RoundUp Ready Canola
B25: This program was developed in MS Excel 2007. If you are using an earlier version of MS Excel, you may experience loss of functionality and calculation errors. Users are strongly encouraged to upgrade to MS Excel 2007 or later versions. This program utilizes MS Excel Macros. To enable macros, click on the "Options" button at the top of the worksheet and select "Enable."
J29: Build date | L29: 2010-08-12

Sheet Grain (hidden)
B2: Grain-only Wheat Budgets
G6: Rotation
B8: Revenue | E8: units | G8: Grain-only Continuous Wheat | J8: Grain-only Wheat-Wheat-Canola
B10: Wheat grain yield | E10: bu/acre | G10: 40 | J10: 43
B11: Wheat sale price | E11: $/bu | G11: 6 | J11: 6
B12: Gross revenue | E12: $/acre | G12: =G11*G10 -> 240 | J12: =J11*J10 -> 258
B14: Cash expenses for WHEAT production | E14: units | F14: $/unit | G14: Quantity per acre | H14: $/acre | J14: Quantity per acre | K14: $/acre
B15: Wheat seed | E15: bu/acre | F15: 14 | G15: 1 | H15: =G15*F15 -> 14 | J15: 1 | K15: =J15*F15 -> 14
B17: Anhyrdous ammonia (82-0-0) | E17: lb/acre | F17: 0.43 | G17: 68 | H17: =G17*F17 -> 29.24 | J17: 76 | K17: =J17*F17 -> 32.68
B18: Fertilizer application | E18: per acre | F18: 12 | G18: 1 | H18: =G18*F18 -> 12 | J18: 1 | K18: =J18*F18 -> 12
B19: DAP (18-46-0) | E19: lb/acre | F19: 0.89 | G19: 50 | H19: 44.5 | J19: 50 | K19: 44.5
B20: Fertilizer application | E20: per acre | F20: 4 | G20: 1 | H20: 4 | J20: 1 | K20: 4
B22: Herbicide (broadleaf) | E22: per acre | F22: 2.7 | G22: 1 | H22: 2.7 | J22: 1 | K22: 2.7
B23: Herbicide (grass) | E23: per acre | F23: 17.17 | G23: 1 | H23: =G23*F23 -> 17.17 | J23: 1 | K23: =J23*F23 -> 17.17
B24: Herbicide3 | E24: $/oz | H24: 0 | K24: 0
B25: Herbicide application | E25: per acre | F25: 5 | G25: 2 | H25: 10 | J25: 2 | K25: 10
B27: Insecticide1 | E27: $/pint | F27: 5.91 | G27: 0.75 | H27: 4.4325 | J27: 0.75 | K27: 4.4325
B28: Insecticide2 | E28: $/oz | H28: 0 | K28: 0
B29: Pesticide application (aerial) | E29: per acre | F29: 5 | G29: 1.33 | H29: 6.65 | J29: 1.33 | K29: 6.65
J30: 0.75
B31: Foliar fungicide (1 out of 3 years) | E31: per acre | F31: 16.2 | G31: 0.33 | H31: 5.346 | J31: 0.33 | K31: 5.346
B32: Fungicide2 | E32: $/oz | H32: 0 | K32: 0
B33: Fungicide application | E33: per acre | H33: 0 | K33: 0
B34: Other pesticide | H34: 0 | K34: 0
B36: Crop Insurance | E36: $/acre | F36: 7 | G36: 1 | H36: =G36*F36 -> 7 | J36: 1 | K36: =J36*F36 -> 7
B37: Fuel | E37: $/gal | F37: 3.5 | G37: 4.92 | H37: 17.22 | J37: 4.92 | K37: 17.22
B38: Lube | E38: per acre | F38: 2.58 | G38: 1 | H38: 2.58 | J38: 1 | K38: 2.58
B39: Repair | E39: per acre | F39: 7.12 | G39: 1 | H39: 7.12 | J39: 1 | K39: 7.12
B41: Wheat harvest and hauling
B42: Base charge | E42: $/acre | F42: 21 | G42: 1 | H42: =G42*F42 -> 21 | J42: 1 | K42: =J42*F42 -> 21
B43: Excess for > 20 bu/acre | E43: per bu | F43: 0.21 | G43: =IF(G10>20, (G10-20),0) -> 20 | H43: 4.2 | J43: =IF(J10>20, (J10-20),0) -> 23 | K43: 4.83
B44: Hauling | E44: per bu | F44: 0.23 | G44: =G10 -> 40 | H44: 9.2 | J44: =J10 -> 43 | K44: 9.89
B46: Cash cost pre-harvest subtotal | E46: per acre | F46: xxx | G46: xxx | H46: =SUM(H15:I39) -> 183.9585 | J46: xxx | K46: =SUM(K15:L39) -> 187.3985
B47: Operating note interest rate | E47: % | F47: 0.07 | G47: xxx | H47: =H46*$F$47/12*8/2 -> 4.292365 | J47: xxx | K47: =K46*$F$47/12*8/2 -> 4.372631667
B49: Total cash expense | E49: per acre | F49: xxx | G49: xxx | H49: =SUM(H15:I44)+H47 -> 222.650865 | J49: xxx | K49: =SUM(K15:L44)+K47 -> 227.4911317
B50: Net returns to land, fixed costs, labor and management | E50: per acre | F50: xxx | G50: xxx | H50: =G12-H49 -> 17.349135 | J50: xxx | K50: =J12-K49 -> 30.50886833

Sheet Dual purpose
B2: Dual-Purpose Wheat Budgets
G6: Rotation
B8: Revenue | E8: units | G8: Dual-purpose Continuous Wheat | J8: Dual-purpose Wheat-Wheat-Canola
B10: Wheat grain yield | E10: bu/acre | G10: 33 | J10: 36
B11: Wheat sale price | E11: $/bu | G11: 6 | J11: =G11 -> 6
B12: Grazing revenue or return | E12: $/acre | G12: 90.4475 | J12: =G12 -> 90.4475
B13: Gross revenue | E13: $/acre | G13: =G11*G10+G12 -> 288.4475 | J13: =J11*J10+J12 -> 306.4475
B15: Cash expenses for WHEAT production | E15: units | F15: $/unit | G15: Quantity per acre | H15: $/acre | J15: Quantity per acre | K15: $/acre
B16: Wheat seed | E16: bu/acre | F16: 14 | G16: 2 | H16: =G16*F16 -> 28 | J16: 2 | K16: =J16*F16 -> 28
B18: Anhyrdous ammonia (82-0-0) | E18: lb/acre | F18: 0.43 | G18: 110 | H18: =G18*F18 -> 47.3 | J18: 110 | K18: =J18*F18 -> 47.3
B19: Anhyrdous ammonia application | E19: per acre | F19: 12 | G19: 1 | H19: 12 | J19: 1 | K19: 12
B20: Urea (46-0-0) | E20: lb/acre | F20: 0.89 | G20: 20 | H20: 17.8 | J20: 33 | K20: 29.37
B21: Fertilizer application | E21: per acre | F21: 4 | G21: 2 | H21: 8 | J21: 2 | K21: 8
B23: Herbicide1 (broadleaf) | E23: $/pint | F23: 2.7 | G23: 1 | H23: 4 | J23: 1 | K23: 4
B24: Herbicide2 (grass) | E24: $/quart | F24: 17.17 | G24: 1 | H24: 17.17 | J24: 1 | K24: 17.17
B25: Herbicide3 | E25: $/oz | H25: 0 | K25: 0
B26: Herbicide application | E26: per acre | F26: 5 | G26: 2 | H26: 10 | J26: 2 | K26: 10
B28: Insecticide1 | E28: $/pint | F28: 5.91 | G28: 1 | H28: 5.91 | J28: 1 | K28: 5.91
B29: Insecticide2 | E29: $/oz | H29: 0 | K29: 0
B30: Insecticide application | E30: per acre | F30: 5 | G30: 1 | H30: 5 | J30: 1 | K30: 5
B32: Fungicide1 (1 out 3 years) | E32: $/acre | F32: 16.2 | G32: 0.33 | H32: 5.346 | J32: 0.33 | K32: 5.346
B33: Fungicide2 | E33: $/oz | H33: 0 | K33: 0
B34: Fungicide application | E34: per acre | H34: 0 | K34: 0
B35: Other pesticide | H35: 0 | K35: 0
B37: Crop Insurance | E37: $/acre | F37: 7 | G37: 1 | H37: =G37*F37 -> 7 | J37: 1 | K37: =J37*F37 -> 7
B38: Fuel | E38: $/gal | F38: 3.5 | G38: 4.92 | H38: 17.22 | J38: 4.92 | K38: 17.22
B39: Lube | E39: per acre | F39: 2.58 | G39: 1 | H39: 2.58 | J39: 1 | K39: 2.58
B40: Repair | E40: per acre | F40: 7.12 | G40: 1 | H40: 7.12 | J40: 1 | K40: 7.12
B42: Wheat harvest and hauling
B43: Base charge | E43: $/acre | F43: 21 | G43: 1 | H43: =G43*F43 -> 21 | J43: 1 | K43: =J43*F43 -> 21
B44: Excess for > 20 bu/acre | E44: per bu | F44: 0.21 | G44: =IF(G10>20, (G10-20),0) -> 13 | H44: 2.73 | J44: =IF(J10>20, (J10-20),0) -> 16 | K44: 3.36
B45: Hauling | E45: per bu | F45: 0.23 | G45: =G10 -> 33 | H45: 7.59 | J45: =J10 -> 36 | K45: 8.28
B47: Cash cost pre-harvest subtotal | E47: per acre | F47: xxx | G47: xxx | H47: =SUM(H16:I40) -> 194.446 | J47: xxx | K47: =SUM(K16:L40) -> 206.016
B48: Operating note interest rate | E48: % | F48: 0.07 | G48: xxx | H48: =H47*$F$48/12*8/2 -> 4.537073333 | J48: xxx | K48: =K47*$F$48/12*8/2 -> 4.80704
B50: Total cash expense | E50: per acre | F50: xxx | G50: xxx | H50: =SUM(H16:I45)+H48 -> 230.3030733 | J50: xxx | K50: =SUM(K16:L45)+K48 -> 243.46304
B51: Net returns to land, fixed costs, labor and management | E51: per acre | F51: xxx | G51: xxx | H51: =G13-H50 -> 58.14442667 | J51: xxx | K51: =J13-K50 -> 62.98446

Sheet Grazing (hidden)
B2: Grazing returns worksheet
B6: Purchase price (or value) of stockers | G6: $/cwt | H6: 180
B7: Purchase weight of stockers | G7: lb | H7: 475
B8: Average daily gain of stockers | G8: #/day | H8: 2
B9: Days grazing wheat | G9: days | H9: 115
B10: Sale weight | G10: lb | H10: =H7+H8*H9 -> 705
B11: Sale price of stockers | G11: $/cwt | H11: 155
B12: Death loss | G12: % | H12: 0.02
B13: Value of gain net of death loss | G13: $/hd | H13: =(H10*H11/100*(1-H12))-H7*H6/100 -> 215.895
B14: Stocking rate | G14: ac/hd | H14: 2
B15: Value of gain | G15: $/ac | H15: =H13/H14 -> 107.9475
B17: Feed expense--excluding wheat | G17: $/hd | H17: 15
B18: Veterinary expense | G18: $/hd | H18: 12
B19: Trucking expense | G19: $/hd | H19: 8
B20: Other expenses | G20: $/hd
B21: Other expenses | G21: $/hd
B22: Other expenses | G22: $/hd
B23: Other expenses | G23: $/hd
B24: Total stocker expense | G24: $/hd | H24: =SUM(H17:I23) -> 35
B25: Total stocker expense | G25: $/ac | H25: =H24/H14 -> 17.5
B27: Stocker returns to wheat | G27: $/ac | H27: =H15-H25 -> 90.4475

Sheet Canola
B2: =Scenario!H22 & " Budget" -> RoundUp Ready Canola Budget
B6: Revenue | F6: units | H6: Canola
B7: Canola production | F7: bu/acre | H7: 41
B8: Canola sale price | F8: $/bu | H8: 12
B9: Gross revenue | F9: $/acre | H9: =H8*H7 -> 492
B11: Cash expenses for CANOLA production | F11: # of units | G11: $/unit | H11: $/acre
B12: Canola seed, treatment & fees | E12: lb/acre | F12: 5 | G12: 5.4 | H12: =G12*F12 -> 27
B14: Anhyrdous ammonia (82-0-0) | E14: lb/acre | F14: 36 | G14: 0.43 | H14: =G14*F14 -> 15.48
B15: Urea (46-0-0) | E15: lb/acre | F15: 106 | G15: 0.89 | H15: 94.34
B16: DAP (18-46-0) | E16: lb/acre | F16: 50 | G16: 0.89 | H16: 44.5
B17: Anhyrdous ammonia application | E17: per acre | F17: 1 | G17: 12 | H17: 12
B18: Fertilizer application | E18: per acre | F18: 2 | G18: 4 | H18: 8
B20: Glyphosate | E20: oz/acre | F20: 44 | G20: 0.11 | H20: =G20*F20 -> 4.84
B21: AMS | E21: lb/acre | F21: 4 | G21: 0.29 | H21: 1.16
B22: Other herbicide | E22: per acre | H22: 0
B23: Herbicide application | E23: per acre | F23: 3 | G23: 5 | H23: 15
B25: Warrior (1 out of 3 Falls) | E25: oz/acre | F25: 0.33 | G25: 3.67 | H25: =G25*F25 -> 1.2111
B26: Warrior Spring | E26: oz/acre | F26: 3 | G26: 3.67 | H26: 11.01
B27: Aerial application | E27: per acre | F27: 1.33 | G27: 5 | H27: 6.65
B28: Insecticide application | E28: per acre | H28: 0
B30: Fungicide1 | E30: per acre | H30: =G30*F30 -> 0
B31: Fungicide2 | E31: pint/acre | H31: 0
B32: Fungicide application | E32: per acre | H32: 0
B34: Canola crop insurance | E34: per acre | F34: 1 | G34: 16 | H34: =G34*F34 -> 16
B35: Fuel | E35: per gal | F35: 4.92 | G35: 3.5 | H35: 17.22
B36: Lube | E36: per acre | F36: 1 | G36: 2.58 | H36: 2.58
B37: Repair | E37: per acre | F37: 1 | G37: 7.12 | H37: 7.12
B39: Canola custom harvest & hauling
B40: Swathing or Pushing | E40: per acre | F40: 1 | G40: 15 | H40: =G40*F40 -> 15
B41: Combining base rate | E41: per acre | F41: 1 | G41: 21 | H41: 21
B42: Excess for > 20 bu/acre | E42: per bushel | F42: =IF(H7>20,H7-20,0) -> 21 | G42: 0.21 | H42: 4.41
B43: Hauling | E43: per bushel | F43: =H7 -> 41 | G43: 0.23 | H43: =G43*F43 -> 9.43
B45: Cash expense pre-harvest subtotal | E45: per acre | F45: xxx | G45: xxx | H45: =SUM(H12:I37) -> 284.1111
B46: Operating note interest rate | E46: % | F46: 0.07 | G46: xxx | H46: =H45*F46/12*8/2 -> 6.629259
B48: Total cash expense | E48: per acre | F48: xxx | G48: xxx | H48: =SUM(H12:I43)+H46 -> 340.580359
B49: Net returns to land, fixed costs, labor and management | E49: per acre | F49: xxx | G49: xxx | H49: =H9-H48 -> 151.419641

Sheet Results
B2: ="Results " & IF(Scenario!B15<>"Enter scenario description", "for " & Scenario!B15,"") -> Results
B6: Revenues | F6: =Scenario!B22 & " continuous wheat" -> Dual-purpose continuous wheat | J6: =Scenario!B22 & " Wheat-Wheat-" & Scenario!H22 -> Dual-purpose Wheat-Wheat-RoundUp Ready Canola
B7: ="Wheat" & IF(Scenario!B22="Dual-purpose", " + grazing","") -> Wheat + grazing | F7: =IF(Scenario!$B$22="Grain-only",Grain!G12,'Dual purpose'!G13) -> 288.4475 | J7: =IF(Scenario!$B$22="Grain-only",Grain!J12,'Dual purpose'!J13) -> 306.4475
B8: Canola | J8: =Canola!H9 -> 492
B9: Total revenue (weighted avg) | F9: =F7 -> 288.4475 | J9: =J8/3+J7*2/3 -> 368.2983333
B10: Cash expenses
B11: Wheat | F11: =IF(Scenario!$B$22="Grain-only",Grain!H49,'Dual purpose'!H50) -> 230.3030733 | J11: =IF(Scenario!$B$22="Grain-only",Grain!K49,'Dual purpose'!K50) -> 243.46304
B12: Canola | J12: =Canola!H48 -> 340.580359
B13: Total expenses (weighted avg) | F13: =F11 -> 230.3030733 | J13: =J12/3+J11*2/3 -> 275.8354797
B14: Net returns to land, fixed costs, labor and management | F14: =F9-F13 -> 58.14442667 | J14: =J9-J13 -> 92.46285367

Sheet More info
B2: This program is joint product of the Oklahoma Cooperative Extension Service and the Oklahoma Agricultural Experiment Station, Oklahoma State University, Stillwater, OK.
B7: More information on canola can be found at the links below.
B10: OSU Okanola website
B12: OSU Division of Agricultural Sciences and Natural Resources
B14: Oklahoma Cooperative Extension Service
B16: Oklahoma Agricultural Experiment Station
B18: Find your local OCES office
B20: OCES factsheets
B22: OSU Department of Agricultural Economics
B24: OSU Department of Plant and Soil Sciences
B26: For questions on this program, contact Eric A. DeVuyst.
C27: 405-744-6166 | G27: eric.devuyst@okstate.edu
